[Event "44th Chess Olympiad Women 2022"]
[Site "Chennai"]
[Date "2022.08.01"]
[Round "4.19"]
[White "Pipiras, Filipa Fortuna"]
[Black "Unuk, Laura"]
[Result "1/2-1/2"]
[WhiteElo "2139"]
[BlackElo "2340"]
[Annotator "TA"]
[PlyCount "62"]
[EventDate "2022.??.??"]
[TimeControl "60"]

{[%evp 17,62,29,20,22,35,36,60,56,57,27,22,0,0,0,13,0,9,7,71,0,0,-54,0,0,0,0,0,
0,8,0,0,0,0,0,0,0,0,-3,0,0,0,0,0,0,0,0,0]} 1. d4 {[%emt 0:01:44]} Nf6 {[%emt 0:
00:00]} 2. c4 {[%emt 0:00:14]} e6 {[%emt 0:00:07]} 3. Nc3 {[%emt 0:00:12]} Bb4
{[%emt 0:00:12]} 4. Qc2 {[%emt 0:00:24]} d5 {[%emt 0:00:20]} 5. a3 {[%emt 0:00:
00]} Bxc3+ {[%emt 0:04:09]} 6. Qxc3 {[%emt 0:00:19]} Ne4 {[%emt 0:00:51]} 7.
Qc2 {[%emt 0:01:02]} c5 {[%emt 0:01:25]} 8. dxc5 {[%emt 0:04:57]} Nc6 {[%emt 0:
00:00]} 9. Nf3 {[%emt 0:01:10]} Qa5+ {[%emt 0:09:59]} 10. Bd2 {[%emt 0:01:51]
E37: Nimzo-Indian: Classical: 4...d5 5 a3 Bxc3+ 6 Qxc3 Ne4.} Qxc5 {[%emt 0:00:
00]} 11. e3 {[%emt 0:02:06]} a5 {[%emt 0:05:00] Against b4} 12. Rc1 {[%emt 0:
00:00] White is slightly better.} Qe7 {[%emt 0:01:10]} 13. cxd5 {[%emt 0:19:07]
} exd5 {[%emt 0:00:31]} 14. Bb5 {[%emt 0:00:27]} O-O {[%emt 0:01:16]} 15. O-O {
[%emt 0:03:56] [#]} Bg4 $146 {[%emt 0:05:02]} ({Predecessor:} 15... Bf5 16. Qd1
Bg4 17. Be2 Rad8 18. Bc3 Rfe8 19. Bd4 Rd6 20. h3 Bf5 21. Bc5 Nxc5 22. Rxc5 {
0-1 (61) Bottema,M (2105)-Piasetski,L (2288) Vlissingen 2009}) 16. Nd4 {
[%emt 0:07:04]} Rfc8 {[%emt 0:18:19]} 17. Bxc6 {[%emt 0:04:05]} Bd7 {[%emt 0:
00:00]} (17... bxc6 $11 {keeps the balance.} 18. f3 (18. Nxc6 Qg5 $15) 18...
Nxd2 19. Qxd2 Bd7) 18. b4 {[%emt 0:09:05]} bxc6 $11 {[%emt 0:03:14]} 19. f3 {
[%emt 0:02:06]} ({White should try} 19. bxa5 $11 c5 20. Ne2) 19... Nxd2 {
[%emt 0:01:27]} (19... c5 $1 $15 20. bxc5 Rxc5) 20. Qxd2 {[%emt 0:00:06] The
position is equal.} axb4 {[%emt 0:00:10]} 21. axb4 {[%emt 0:00:10]} Ra4 {
[%emt 0:07:05]} 22. Rc5 {[%emt 0:01:41]} Rb8 {[%emt 0:05:58]} 23. Nxc6 {
[%emt 0:09:58]} Bxc6 {[%emt 0:00:07]} 24. Rxc6 {[%emt 0:00:05]} Raxb4 {[%emt 0:
00:00]} 25. Rfc1 {[%emt 0:00:31] [#] Strongly threatening Rc8+.} h5 {[%emt 0:
00:00]} 26. Qd3 {[%emt 0:04:38] Black must now prevent Rc8+.} g6 {[%emt 0:00:
00]} 27. R6c5 {[%emt 0:02:15]} Rb3 {[%emt 0:04:22]} 28. R5c3 {[%emt 0:02:05]}
Rxc3 {[%emt 0:00:51]} 29. Qxc3 {[%emt 0:00:09]} Re8 {[%emt 0:01:50]} 30. Rd1 {
[%emt 0:03:50]} Qxe3+ {[%emt 0:00:18]} 31. Qxe3 {[%emt 0:00:07]} Rxe3 {[%emt 0:
00:00] Weighted Error Value: White=0.13 (very precise) /Black=0.11 (very
precise)} 1/2-1/2

[Event "44th Chess Olympiad Women 2022"]
[Site "Chennai"]
[Date "2022.08.01"]
[Round "4.19"]
[White "Rozman, Monika"]
[Black "Silva, Ana Ines Teixeira D"]
[Result "1-0"]
[WhiteElo "2104"]
[BlackElo "1775"]
[Annotator "NA RC"]
[PlyCount "41"]
[EventDate "2022.??.??"]
[TimeControl "60"]

1. e4 {[%emt 0:00:03]} e5 {[%emt 0:00:06]} 2. Nf3 {[%emt 0:00:04]} Nc6 {
[%emt 0:00:05]} 3. Bc4 {[%emt 0:00:04]} Nf6 {[%emt 0:00:05]} 4. d3 {[%emt 0:00:
00]} Bc5 {[%emt 0:00:11]} 5. Nc3 {[%emt 0:00:21]} a6 {[%emt 0:01:50]} 6. O-O {
[%emt 0:00:51]} d6 {[%emt 0:01:49]} 7. h3 {[%emt 0:03:14]} Ba7 {[%emt 0:02:33]}
8. Be3 {[%emt 0:02:17]} Bxe3 {[%emt 0:05:08]} 9. fxe3 {[%emt 0:00:10]} O-O {
[%emt 0:00:44]} 10. a4 {[%emt 0:00:50]} Na5 {[%emt 0:02:33]} 11. Ba2 {[%emt 0:
00:00]} c5 {[%emt 0:02:22]} 12. Rf2 {[%emt 0:12:42]} Nc6 {[%emt 0:10:21]} 13.
Qe2 {[%emt 0:02:08]} Rb8 {[%emt 0:08:08]} 14. Ng5 {[%emt 0:07:08]} Ne7 {
[%emt 0:14:59]} 15. Raf1 {[%emt 0:04:24]} h6 {[%emt 0:21:26]} 16. Rxf6 {
[%emt 0:10:51]} gxf6 {[%emt 0:00:47]} 17. Rxf6 {[%emt 0:00:49]} d5 {[%emt 0:00:
00]} 18. Qh5 {[%emt 0:07:29]} hxg5 {[%emt 0:03:35]} 19. Bxd5 {[%emt 0:06:45]}
Nf5 {[%emt 0:07:45]} 20. Rg6+ {[%emt 0:01:16]} Ng7 {[%emt 0:00:32]} 21. Qh6 {
[%emt 0:00:10]} 1-0

[Event "44th Chess Olympiad Women 2022"]
[Site "Chennai"]
[Date "2022.08.01"]
[Round "4.20"]
[White "Monroy G., Nataly A."]
[Black "Markantonaki, Haritomeni"]
[Result "1-0"]
[WhiteElo "1907"]
[BlackElo "2154"]
[Annotator "NA RC"]
[PlyCount "75"]
[EventDate "2022.??.??"]
[TimeControl "60"]

1. d4 {[%emt 0:00:04]} Nf6 {[%emt 0:00:09]} 2. Nf3 {[%emt 0:00:47]} e6 {
[%emt 0:00:21]} 3. g3 {[%emt 0:04:55]} b5 {[%emt 0:00:42]} 4. Bg2 {[%emt 0:00:
00]} Bb7 {[%emt 0:00:06]} 5. O-O {[%emt 0:00:28]} Be7 {[%emt 0:00:48]} 6. b3 {
[%emt 0:00:15]} c5 {[%emt 0:08:47]} 7. e3 {[%emt 0:30:05]} O-O {[%emt 0:02:04]}
8. c4 {[%emt 0:04:12]} a6 {[%emt 0:13:14]} 9. Bb2 {[%emt 0:03:40]} d5 {[%emt 0:
00:00]} 10. Nbd2 {[%emt 0:05:14]} Nbd7 {[%emt 0:09:26]} 11. Rc1 {[%emt 0:01:48]
} Qb6 {[%emt 0:02:41]} 12. cxd5 {[%emt 0:06:33]} Nxd5 {[%emt 0:04:34]} 13. Qe2
{[%emt 0:04:32]} Rac8 {[%emt 0:04:20]} 14. a3 {[%emt 0:05:35]} cxd4 {[%emt 0:
00:00]} 15. Nxd4 {[%emt 0:02:35]} Nc5 {[%emt 0:03:01]} 16. b4 {[%emt 0:05:32]}
Na4 {[%emt 0:01:10]} 17. Ba1 {[%emt 0:00:08]} Rfd8 {[%emt 0:05:32]} 18. Qh5 {
[%emt 0:05:53]} Nf6 {[%emt 0:03:00]} 19. Qh3 {[%emt 0:00:10]} Bxg2 {[%emt 0:00:
00]} 20. Qxg2 {[%emt 0:00:04]} Nd5 {[%emt 0:02:24]} 21. h4 {[%emt 0:03:23]} a5
{[%emt 0:04:17]} 22. e4 {[%emt 0:04:37]} Ndc3 {[%emt 0:03:22]} 23. N2b3 {
[%emt 0:01:16]} axb4 {[%emt 0:00:48]} 24. Qf3 {[%emt 0:01:04]} Bf6 {[%emt 0:00:
00]} 25. Ne2 {[%emt 0:05:07]} Nxe2+ {[%emt 0:01:21]} 26. Qxe2 {[%emt 0:00:03]}
bxa3 {[%emt 0:00:59]} 27. Bxf6 {[%emt 0:00:04]} gxf6 {[%emt 0:00:03]} 28. Qg4+
{[%emt 0:00:20]} Kf8 {[%emt 0:01:17]} 29. e5 {[%emt 0:01:32]} Rxc1 {[%emt 0:00:
00]} 30. Rxc1 {[%emt 0:00:28]} fxe5 {[%emt 0:00:12]} 31. Qh5 {[%emt 0:00:12]}
Qd6 {[%emt 0:02:26]} 32. Qxh7 {[%emt 0:00:31]} Qd3 {[%emt 0:01:33]} 33. Qh6+ {
[%emt 0:02:34]} Ke7 {[%emt 0:03:52]} 34. Qg5+ {[%emt 0:01:33]} f6 {[%emt 0:00:
00]} 35. Qg7+ {[%emt 0:00:03]} Kd6 {[%emt 0:01:39]} 36. Qc7+ {[%emt 0:00:13]}
Kd5 {[%emt 0:00:04]} 37. Qxd8+ {[%emt 0:00:15]} Ke4 {[%emt 0:00:03]} 38. Nd2+ {
[%emt 0:00:27]} 1-0

[Event "44th Chess Olympiad Women 2022"]
[Site "Chennai"]
[Date "2022.08.01"]
[Round "4.20"]
[White "Pavlidou, Ekaterini"]
[Black "Molina, Jessica"]
[Result "0-1"]
[WhiteElo "2138"]
[BlackElo "1889"]
[Annotator "NA RC"]
[PlyCount "64"]
[EventDate "2022.??.??"]
[TimeControl "60"]

1. d4 {[%emt 0:00:21]} d5 {[%emt 0:00:04]} 2. c4 {[%emt 0:00:15]} c6 {[%emt 0:
00:00]} 3. cxd5 {[%emt 0:00:21]} cxd5 {[%emt 0:00:06]} 4. Bf4 {[%emt 0:00:23]}
Nc6 {[%emt 0:00:36]} 5. e3 {[%emt 0:00:59]} Nf6 {[%emt 0:00:18]} 6. Nc3 {
[%emt 0:01:04]} e6 {[%emt 0:02:01]} 7. Bd3 {[%emt 0:00:50]} Be7 {[%emt 0:02:11]
} 8. h3 {[%emt 0:05:11]} a6 {[%emt 0:05:31]} 9. Nf3 {[%emt 0:03:40]} O-O {
[%emt 0:03:33]} 10. O-O {[%emt 0:02:41]} b5 {[%emt 0:00:29]} 11. a4 {[%emt 0:
00:00]} b4 {[%emt 0:01:45]} 12. Ne2 {[%emt 0:00:51]} Bb7 {[%emt 0:00:48]} 13.
Ne5 {[%emt 0:02:59]} Rc8 {[%emt 0:06:45]} 14. f3 {[%emt 0:13:41]} Qb6 {[%emt 0:
00:00]} 15. Bg5 {[%emt 0:04:08]} Nxe5 {[%emt 0:17:21]} 16. dxe5 {[%emt 0:02:11]
} Ng4 {[%emt 0:00:30]} 17. Bxe7 {[%emt 0:06:00]} Nxe3 {[%emt 0:03:42]} 18. Qe1
{[%emt 0:06:55]} Nf5+ {[%emt 0:04:22]} 19. Kh1 {[%emt 0:02:50]} Nxe7 {[%emt 0:
00:00]} 20. Bxh7+ {[%emt 0:03:59]} Kxh7 {[%emt 0:00:24]} 21. Qh4+ {[%emt 0:00:
00]} Kg8 {[%emt 0:00:15]} 22. Qxe7 {[%emt 0:00:05]} Rc2 {[%emt 0:02:11]} 23.
Ng3 {[%emt 0:01:47]} Rxb2 {[%emt 0:03:59]} 24. a5 {[%emt 0:01:45]} Qb5 {
[%emt 0:04:39]} 25. Rac1 {[%emt 0:13:08]} d4 {[%emt 0:02:33]} 26. Rc5 {[%emt 0:
00:00]} Re8 {[%emt 0:02:39]} 27. Qd6 {[%emt 0:00:41]} Qd3 {[%emt 0:05:56]} 28.
Qd7 {[%emt 0:04:39]} Qd2 {[%emt 0:03:23]} 29. Qxe8+ {[%emt 0:00:25]} Kh7 {
[%emt 0:00:12]} 30. Rg1 {[%emt 0:01:09]} Bxf3 {[%emt 0:00:15]} 31. Qc6 {
[%emt 0:00:19]} Bxc6 {[%emt 0:00:59]} 32. Rxc6 {[%emt 0:00:04]} Qf4 {[%emt 0:
00:00]} 0-1

[Event "44th Chess Olympiad Women 2022"]
[Site "Chennai"]
[Date "2022.08.01"]
[Round "4.20"]
[White "Ramirez, Maria Eugenia"]
[Black "Avramidou, Anastasia"]
[Result "0-1"]
[WhiteElo "2005"]
[BlackElo "2274"]
[Annotator "TA"]
[PlyCount "119"]
[EventDate "2022.??.??"]
[TimeControl "60"]

{[%evp 9,119,2,13,5,10,5,14,10,12,12,10,1,10,-2,0,-3,10,-20,-18,-54,0,0,0,0,0,
0,0,0,-14,-14,0,0,0,-35,-27,-116,-49,-31,-32,-15,-7,-7,0,-8,-8,-37,-32,-32,-17,
-27,-9,-15,-7,-15,-6,-10,0,0,0,0,0,-15,-15,-16,-16,-16,-19,-222,-183,-371,-257,
-434,-414,-607,-578,-6191,-6498,-1611,-634,-529,-624,-610,-610,-578,-563,-539,
-531,-1536,-1441,-1857,-1700,-6075,-5738,-5397,-4954,-4829,-4098,-2902,-2412,
-2639,-2521,-2278,-2019,-29973,-29974,-29974,-1838,-29975,-29976,-29978,-29979,
-6107]} 1. e4 {[%emt 0:00:03]} c5 {[%emt 0:00:13]} 2. Na3 {[%emt 0:00:08]} b6 {
[%emt 0:00:12]} 3. g3 {[%emt 0:00:25]} Bb7 {[%emt 0:00:11]} 4. Bg2 {[%emt 0:00:
00]} Nf6 {[%emt 0:00:11]} 5. Qe2 {[%emt 0:00:27]} d6 {[%emt 0:11:08]} 6. c3 {
[%emt 0:01:00] [#] B31: Sicilian: 2...Nc6 3 Bb5 g6.} g6 $146 {[%emt 0:06:03]} (
{Predecessor:} 6... e6 7. Nh3 Be7 8. O-O O-O 9. Rd1 d5 10. e5 Ne8 11. d4 Ba6
12. Qh5 Nc6 {1-0 (49) Shabalov,A (2604)-Huber,G (2245) Edmonton 2006}) 7. Nh3 {
[%emt 0:01:53]} Bg7 {[%emt 0:00:53]} 8. O-O {[%emt 0:00:51] The position is
equal.} O-O {[%emt 0:00:15]} 9. d3 {[%emt 0:01:44]} Nc6 {[%emt 0:17:45]} 10. f4
{[%emt 0:05:14]} e6 {[%emt 0:00:12]} 11. Nc2 {[%emt 0:03:25]} b5 {[%emt 0:00:
00][%cal Yb6b5,Yb5b4]} 12. Be3 {[%emt 0:03:29]} a5 {[%emt 0:06:36]} 13. Rad1 {
[%emt 0:11:47][%cal Ye4e5]} b4 {[%emt 0:07:47]} 14. c4 {[%emt 0:00:00]} Nd7 {
[%emt 0:00:38]} (14... a4 $15) 15. d4 $11 {[%emt 0:02:35]} cxd4 {[%emt 0:04:23]
} 16. Nxd4 {[%emt 0:00:23]} Nxd4 {[%emt 0:05:58]} 17. Bxd4 {[%emt 0:01:09]}
Bxd4+ {[%emt 0:00:37]} 18. Rxd4 {[%emt 0:00:19]} Qb6 {[%emt 0:00:00]} 19. Qf2 {
[%emt 0:00:31]} e5 {[%emt 0:08:20]} 20. Rd2 {[%emt 0:02:36]} Qc7 {[%emt 0:02:
27]} 21. Qe2 {[%emt 0:09:20]} exf4 {[%emt 0:02:24]} 22. gxf4 {[%emt 0:10:21]} (
22. Nxf4 $11 Qc5+ 23. Kh1) 22... Rfe8 {[%emt 0:03:22]} (22... Rae8 $17 23. Nf2
Nc5) 23. f5 $15 {[%emt 0:01:16]} Qc5+ {[%emt 0:05:50]} 24. Kh1 {[%emt 0:02:03]}
Qe5 {[%emt 0:00:04]} 25. Ng5 {[%emt 0:19:07][%cal Yf5g6]} f6 {[%emt 0:01:13]}
26. Ne6 {[%emt 0:07:43]} Rac8 {[%emt 0:02:50]} 27. Nf4 {[%emt 0:04:35]} g5 {
[%emt 0:04:13]} ({Don't take} 27... Bxe4 28. Bxe4 Qxe4+ 29. Qxe4 Rxe4 30. Rxd6
$16) (27... gxf5 28. Qh5 $16) 28. Nd5 {[%emt 0:00:57]} Rc5 {[%emt 0:01:19]} 29.
Rfd1 {[%emt 0:01:23]} Bxd5 {[%emt 0:01:18]} 30. Rxd5 {[%emt 0:00:19]} Rxd5 {
[%emt 0:00:03]} 31. Rxd5 {[%emt 0:00:25]} Qf4 {[%emt 0:00:00] Black wants to
play ...Ne5.} 32. Qd2 {[%emt 0:02:29]} Rxe4 {[%emt 0:00:00] [#] White must now
prevent ...Qxd2.} 33. Qxf4 {[%emt 0:00:30]} Rxf4 {[%emt 0:00:03]} 34. Rxd6 $11
{[%emt 0:01:12] Endgame KRB-KRN} Nc5 {[%emt 0:01:06]} 35. Bd5+ {[%emt 0:00:56]}
Kg7 {[%emt 0:00:14]} 36. Rc6 {[%emt 0:00:20]} Nd3 {[%emt 0:00:29]} 37. Rc7+ {
[%emt 0:00:05]} Kh6 {[%emt 0:00:00]} 38. Bg8 $2 {[%emt 0:01:01] [#] Now White
is beyond hope.} (38. Kg2 $1 $11 {and White stays safe.}) 38... Kh5 $1 $19 {
[%emt 0:00:50] And now ...Kg4 would win.} ({Less strong is} 38... Rxf5 39.
Rxh7+ Kg6 40. Rd7 Rf1+ 41. Kg2 $14) ({Weaker is} 38... Rf1+ 39. Kg2 Rxf5 40.
Rxh7+ Kg6 41. Rd7 Ne1+ 42. Kg1 Nf3+ 43. Kg2 Ne1+ 44. Kg1 Nf3+ 45. Kg2 $11) 39.
Re7 $2 {[%emt 0:00:52]} (39. Kg2 h6 40. Rc6) 39... Kg4 {[%emt 0:00:37]} 40. h3+
$2 {[%emt 0:00:33]} (40. Kg1 {was necessary.}) 40... Kf3 {[%emt 0:00:35] ...
Ne5 is the strong threat.} 41. Bd5+ {[%emt 0:30:42]} (41. a3 $142 Rd4 42. axb4
axb4 43. Kg1) 41... Kf2 {[%emt 0:00:00] Threatens to win with ...Rh4.} 42. Kh2
{[%emt 0:00:00]} Rh4 {[%emt 0:00:00]} 43. Bg2 {[%emt 0:00:00]} Nf4 {[%emt 0:00:
00]} (43... g4 $142 44. Rg7 h5) 44. Rd7 {[%emt 0:00:23]} Nxg2 {[%emt 0:00:00]
KRN-KR} 45. Rd2+ {[%emt 0:00:06]} Kf3 {[%emt 0:00:00]} 46. Rxg2 {[%emt 0:00:23]
} Rxc4 {[%emt 0:00:00] KR-KR} 47. Rg3+ {[%emt 0:01:44]} Ke4 {[%emt 0:00:00]
Hoping for ...Rc2+.} 48. Rg4+ {[%emt 0:00:00]} Kd3 {[%emt 0:00:00]} 49. Rg3+ {
[%emt 0:00:10]} Kc2 {[%emt 0:00:00]} 50. b3 {[%emt 0:01:26]} Rc3 {[%emt 0:00:
00] Strongly threatening ...Rxg3.} 51. Rg4 {[%emt 0:00:38]} Kb2 {[%emt 0:00:00]
} 52. h4 {[%emt 0:00:08]} h6 {[%emt 0:00:00]} 53. Rd4 {[%emt 0:00:25]} Rc5 {
[%emt 0:00:00]} 54. Kg3 {[%emt 0:00:14]} Kxa2 {[%emt 0:00:00]} 55. Kg4 {
[%emt 0:00:40]} Kxb3 {[%emt 0:00:00] ( -> ...Rc4)} 56. Rd6 {[%emt 0:00:05]}
Rc4+ {[%emt 0:00:00]} 57. Kh5 {[%emt 0:00:07]} Rxh4+ {[%emt 0:00:00]} 58. Kg6 {
[%emt 0:00:02]} a4 {[%emt 0:00:00][%cal Ya5a4,Ya4a3]} 59. Kxf6 {[%emt 0:00:11]}
a3 {[%emt 0:00:00]} 60. Ke5 {[%emt 0:00:00] Weighted Error Value: White=0.83/
Black=0.21 (precise)} 0-1

[Event "44th Chess Olympiad Women 2022"]
[Site "Chennai"]
[Date "2022.08.01"]
[Round "4.20"]
[White "Tsolakidou, Stavroula"]
[Black "Cordero, Daniela"]
[Result "1-0"]
[WhiteElo "2362"]
[BlackElo "2005"]
[Annotator "TA"]
[PlyCount "63"]
[EventDate "2022.??.??"]
[TimeControl "60"]

{[%evp 14,63,0,0,0,6,5,0,7,0,0,0,4,14,81,81,92,83,58,0,241,256,328,304,306,158,
302,211,314,267,244,235,529,511,841,835,804,822,1225,933,1391,1290,2587,2551,
29983,29984,29989,29990,29990,29991,29991,983]} 1. e4 {[%emt 0:00:03]} e6 {
[%emt 0:00:06]} 2. d4 {[%emt 0:00:07]} d5 {[%emt 0:00:05]} 3. Nc3 {[%emt 0:00:
00]} Nf6 {[%emt 0:00:17]} 4. Bg5 {[%emt 0:00:11]} Bb4 {[%emt 0:00:17]} 5. e5 {
[%emt 0:00:14]} h6 {[%emt 0:00:06]} 6. Bh4 {[%emt 0:00:24]} g5 {[%emt 0:00:35]}
7. Bg3 {[%emt 0:00:07]} Ne4 {[%emt 0:00:29]} 8. Nge2 $1 {[%emt 0:00:10]} Nxc3 {
[%emt 0:02:29] C12: French: Classical System: McCutcheon Variation.} 9. Nxc3 {
[%emt 0:01:44]} c5 {[%emt 0:11:06]} 10. a3 {[%emt 0:01:15]} Bxc3+ {[%emt 0:00:
00] The position is equal.} 11. bxc3 {[%emt 0:00:06]} Qa5 {[%emt 0:00:10]} 12.
Qd2 {[%emt 0:01:36]} Nc6 {[%emt 0:03:54]} 13. dxc5 {[%emt 0:03:21] [#]} h5 $146
{[%emt 0:10:31]} (13... Qxc5 $11 14. h4 Rg8) ({Predecessor:} 13... Qxc5 14. Bd3
Bd7 15. O-O Ne7 16. Kh1 Bb5 17. f4 Bxd3 18. cxd3 g4 19. f5 Nxf5 20. Rxf5 exf5 {
0-1 (54) Kasimdzhanov,R (2704)-Graf,F (2479) Germany 2016}) 14. h4 $16 {
[%emt 0:06:49]} g4 {[%emt 0:01:26]} 15. Bf4 {[%emt 0:02:18]} Qxc5 {[%emt 0:00:
00]} 16. Bg5 {[%emt 0:02:49]} (16. Bd3 $14) 16... f5 $2 {[%emt 0:26:31] White
leaves nothing to chance now.} (16... Rg8 $11 {and Black has nothing to worry.}
) 17. exf6 $18 {[%emt 0:03:45]} Kf7 {[%emt 0:01:31]} 18. Rb1 {[%emt 0:18:55]}
b6 {[%emt 0:05:18]} 19. Bh6 {[%emt 0:16:46]} (19. Be2 $18) 19... Bb7 {[%emt 0:
00:00]} (19... d4 $16 {was worth a try.}) 20. Bg7 {[%emt 0:02:23] Black must
now prevent Bb5.} Ne5 {[%emt 0:17:13]} (20... d4 {might work better.} 21. Qg5 (
21. Bxh8 Rxh8 22. Qg5 Qxg5 $16) 21... Qxg5 22. hxg5 dxc3) 21. Bxh8 {[%emt 0:00:
00] The board is on fire.} Rxh8 {[%emt 0:00:02]} 22. Be2 {[%emt 0:01:26]} g3 $2
{[%emt 0:01:03]} (22... Nd7 23. O-O Nxf6) 23. fxg3 {[%emt 0:01:08]} Ng4 {
[%emt 0:00:30]} (23... Ke8 $142 24. Rb3 Kd8) 24. Bxg4 {[%emt 0:02:47]} hxg4 {
[%emt 0:00:01]} 25. Rb4 {[%emt 0:00:33]} Rg8 {[%emt 0:01:01]} 26. h5 {[%emt 0:
00:00][%cal Yh4h5,Yh5h6,Yh6h7] [#] h6 is the strong threat.} e5 {[%emt 0:00:13]
} 27. h6 {[%emt 0:01:36]} e4 {[%emt 0:00:14]} 28. h7 {[%emt 0:00:00]} Rh8 {
[%emt 0:00:02] [#]} 29. Rxe4 $3 {[%emt 0:04:06] White mates.} dxe4 {[%emt 0:01:
25]} (29... d4 30. Re7+) 30. Qd7+ {[%emt 0:00:05]} Kg6 {[%emt 0:00:32]} 31.
Qg7+ {[%emt 0:00:09]} Kf5 {[%emt 0:00:07]} 32. Rh5+ {[%emt 0:00:02] Skewer.
Weighted Error Value: White=0.26 (precise) / Black=0.94} 1-0

[Event "44th Chess Olympiad Women 2022"]
[Site "Chennai"]
[Date "2022.08.01"]
[Round "4.21"]
[White "Georgescu, Lena"]
[Black "Mezioud, Amina"]
[Result "1-0"]
[WhiteElo "2279"]
[BlackElo "2024"]
[Annotator "TA"]
[PlyCount "121"]
[EventDate "2022.??.??"]
[TimeControl "60"]

{[%evp 19,121,43,66,56,101,115,108,109,99,97,118,118,110,97,195,135,128,109,
142,141,150,54,57,54,54,58,75,33,131,131,139,106,114,87,101,102,104,110,104,
111,102,104,239,126,179,120,120,120,120,120,120,120,120,120,120,120,120,120,
120,110,115,102,115,115,115,115,213,199,185,181,195,176,208,135,142,135,141,8,
15,0,0,8,12837,12838,12837,12837,12847,12847,12848,12847,12848,12847,12847,
12846,12848,12847,12850,27999,27999,27999,27999,27999,27999,27999]} 1. e4 {
[%emt 0:00:03]} e5 {[%emt 0:00:07]} 2. Nf3 {[%emt 0:00:05]} Nc6 {[%emt 0:00:05]
} 3. Bb5 {[%emt 0:00:03]} a6 {[%emt 0:00:07]} 4. Ba4 {[%emt 0:00:02]} b5 {
[%emt 0:00:07]} 5. Bb3 {[%emt 0:00:04]} Bc5 {[%emt 0:00:08]} 6. c3 {[%emt 0:00:
00]} Bb6 {[%emt 0:00:07]} 7. d4 {[%emt 0:02:13]} exd4 {[%emt 0:01:29]} 8. cxd4
{[%emt 0:02:10]} d6 {[%emt 0:00:07]} 9. h3 {[%emt 0:02:35]} Nf6 {[%emt 0:00:18]
} 10. O-O {[%emt 0:02:35]} O-O {[%emt 0:00:22]} 11. Nc3 {[%emt 0:04:31] C78:
Ruy Lopez: Archangelsk and Möller Defences.} Na5 {[%emt 0:07:37]} 12. Bc2 $1 {
[%emt 0:01:41]} h6 {[%emt 0:06:09] [#] Prevents Bg5.} 13. e5 $146 {[%emt 0:00:
00] White is better.} ({Predecessor:} 13. Qe2 Re8 14. e5 Bb7 15. Be3 Bxf3 16.
Qxf3 dxe5 17. dxe5 Rxe5 18. Rad1 Qe8 19. Bxh6 gxh6 20. Qxf6 {1-0 (49) Skuhala,
J (2342)-Janzekovic,K (2001) Gostovanja 2020}) 13... dxe5 {[%emt 0:00:16]} 14.
dxe5 {[%emt 0:00:03]} Qxd1 {[%emt 0:00:27]} 15. Rxd1 {[%emt 0:00:09]} ({
Inferior is} 15. Nxd1 Nd5 $15) 15... Nd7 {[%emt 0:11:01]} 16. Bf4 {[%emt 0:00:
00] White is more active.} Rb8 {[%emt 0:05:09]} (16... b4 $16 {was worth a try.
}) 17. b4 {[%emt 0:07:13]} (17. Nd5 $18 {Ne7+ is the strong threat.} Re8 18. e6
fxe6 19. Nxc7) 17... Nc4 $16 {[%emt 0:11:37]} 18. a4 {[%emt 0:00:34][%cal
Ya2a4,Ya4a5]} Re8 {[%emt 0:06:53]} 19. a5 {[%emt 0:18:11]} ({Much less strong
is} 19. axb5 axb5 20. Nxb5 Nf8 $16) 19... Ba7 {[%emt 0:00:03]} 20. e6 {[%emt 0:
00:41]} (20. Nd5 $1 $16 {[%cal Rd5c7]}) 20... fxe6 $14 {[%emt 0:00:00]} 21.
Bxc7 {[%emt 0:00:20]} Rb7 {[%emt 0:00:41]} 22. Bg3 {[%emt 0:00:47] Strongly
threatening Be4.} Nf6 {[%emt 0:05:17]} 23. Ne5 {[%emt 0:04:34]} Bb8 {[%emt 0:
02:02]} (23... Nxe5 $14 24. Bxe5 Rf8) 24. Nxc4 $16 {[%emt 0:03:31]} bxc4 {
[%emt 0:04:43]} 25. Bxb8 {[%emt 0:00:53]} Rxb8 {[%emt 0:00:01]} 26. Ba4 {
[%emt 0:01:34]} Rf8 {[%emt 0:01:43]} 27. b5 {[%emt 0:09:01]} axb5 {[%emt 0:00:
00]} 28. Bxb5 {[%emt 0:00:20] Hoping for a6.} Nd5 {[%emt 0:06:33]} 29. Nxd5 {
[%emt 0:00:27]} Rxb5 {[%emt 0:05:20]} 30. Ne3 {[%emt 0:00:13]} c3 {[%emt 0:00:
00]} (30... Ba6 $16 {might work better.}) 31. Rdc1 {[%emt 0:03:57]} (31. a6 $18
) 31... Rb3 {[%emt 0:05:52]} (31... Rc5 $16) 32. Nd1 {[%emt 0:01:16]} (32. a6
$18) 32... Ba6 {[%emt 0:00:27]} 33. Rxc3 {[%emt 0:00:47]} Rxc3 {[%emt 0:00:34]}
34. Nxc3 {[%emt 0:00:02] Endgame KRB-KRN} Rf5 {[%emt 0:02:11]} 35. f3 {[%emt 0:
01:11]} Kf8 {[%emt 0:00:43]} 36. Kf2 {[%emt 0:00:26]} Ke7 {[%emt 0:00:00]} 37.
Ne4 {[%emt 0:03:15]} Rd5 {[%emt 0:00:33]} 38. Ra3 {[%emt 0:03:17]} Rb5 {
[%emt 0:01:57]} 39. g4 {[%emt 0:01:37]} Rd5 {[%emt 0:00:00]} 40. Ke3 {[%emt 0:
00:22]} Kd7 {[%emt 0:00:00]} 41. h4 {[%emt 0:09:21]} Ke7 {[%emt 0:00:00]} 42.
h5 {[%emt 0:02:58]} e5 {[%emt 0:02:29]} (42... Kf8 $16 43. Ra2 Kf7) 43. Ng3 {
[%emt 0:01:38]} Kf6 {[%emt 0:03:45]} 44. Nf5 {[%emt 0:02:04]} Rc5 {[%emt 0:02:
00] [#]} 45. Kf2 $1 {[%emt 0:09:59]} Kf7 {[%emt 0:04:10]} 46. Ra2 {[%emt 0:06:
14]} g6 {[%emt 0:09:24]} 47. hxg6+ {[%emt 0:03:10]} ({But not} 47. Nxh6+ $6 Kg7
$14) 47... Kxg6 {[%emt 0:00:02]} 48. Rd2 {[%emt 0:01:07]} (48. Ng3 $16) 48...
Rxa5 $11 {[%emt 0:00:07]} 49. Rd6+ {[%emt 0:00:24]} Kg5 {[%emt 0:00:00]} 50.
Kg3 {[%emt 0:00:43] And now Ne7 would win.} h5 $2 {[%emt 0:01:30] [#]} (50...
Be2 $11) 51. Nh4 $1 $18 {[%emt 0:00:35][%csl Gh4][%cal Rd6g6]} Bd3 {[%emt 0:01:
21] Inhibits Rg6+.} 52. Rxd3 {[%emt 0:00:24]} hxg4 {[%emt 0:03:41]} 53. fxg4 {
[%emt 0:00:04] KRN-KR} e4 {[%emt 0:00:41]} 54. Rc3 {[%emt 0:00:32]} Rd5 {
[%emt 0:00:45]} 55. Ng2 {[%emt 0:00:45]} Rb5 {[%emt 0:00:00]} 56. Ne3 {[%emt 0:
00:09]} Re5 {[%emt 0:00:26]} 57. Rc4 {[%emt 0:00:16]} Ra5 {[%emt 0:00:40]} 58.
Rxe4 {[%emt 0:00:24]} Rb5 {[%emt 0:00:21] White mates.} 59. Rd4 {[%emt 0:00:26]
} Rb3 {[%emt 0:00:46]} 60. Kf3 {[%emt 0:00:20]} Kh4 {[%emt 0:00:30]} 61. Rd5 {
[%emt 0:00:32] Weighted Error Value: White=0.23 (precise) /Black=0.20 (precise)
} 1-0